[Event "1st Semana Santa Torrevieja 2022"]
[Site "Torrevieja Alicante"]
[Date "2022.04.14"]
[Round "3.8"]
[White "Gonzalez Guedes, Iyan"]
[Black "Nasuta, Grzegorz"]
[Result "0-1"]
[ECO "B50"]
[WhiteElo "2251"]
[BlackElo "2530"]
[Annotator "TA"]
[PlyCount "90"]
[EventDate "2022.04.12"]
[EventType "swiss"]
[EventCountry "ESP"]
[SourceTitle "playchess.com"]
[Source "ChessBase"]
[SourceQuality "1"]
[TimeControl "5400+30"]

{[%evp 14,90,10,17,32,22,28,20,24,19,18,22,17,20,47,38,80,-15,40,0,0,0,0,0,0,7,20,-14,-10,-10,-16,-70,-46,-47,-50,-71,-67,-68,-67,-282,-291,-291,-291,-274,-286,-286,-285,-262,-176,-217,-194,-447,-445,-439,-432,-451,-428,-429,-424,-618,-611,-586,-559,-556,-535,-511,-401,-401,-401,-427,-318,-298,-275,-466,-453,-457,-402,-1081,-977]} 1. e4 {[%emt 0:00:07]} c5 {[%emt 0:00:06]} 2. Nf3 {[%emt 1:31:23]} d6 {[%emt 0:10:59]} 3. c3 {[%emt 0:00:00]} Nf6 {[%emt 0:00:06]} 4. Be2 {[%emt 0:00:00]} Nbd7 {[%emt 0:02:05]} 5. d3 {[%emt 0:00:00]} g6 {[%emt 0:00:58]} 6. O-O {[%emt 0:00:00]} Bg7 {[%emt 0:00:06]} 7. Re1 {[%emt 0:00:00]} O-O {[%emt 0:02:59]} 8. Bf1 {[%emt 0:00:00]} e5 {[%emt 0:04:56] B50: Sicilian: 2...d6, Miscellaneous.} 9. d4 {[%emt 0:00:00]} exd4 {[%emt 0:07:38]} 10. cxd4 {[%emt 0:00:00]} cxd4 {[%emt 0:00:07] The position is equal.} 11. Nxd4 {[%emt 0:00:00]} Re8 {[%emt 0:00:11]} 12. Nc3 {[%emt 0:00:00]} a6 {[%emt 0:01:55] Inhibits Ndb5.} 13. Bg5 {[%emt 0:00:00] [#]} h6 $146 {[%emt 0:00:32]} ({Predecessor:} 13... Qa5 14. Bh4 b5 15. Nc6 Qb6 16. Nb4 Bb7 17. Qd2 Nxe4 18. Nxe4 Bxe4 19. Rad1 a5 {1-0 (61) Goryachkina,A (2579)-Obolentseva,A (2305) Moscow 2020}) 14. Bh4 {[%emt 0:00:00]} Nc5 {[%emt 0:07:37]} 15. b4 {[%emt 0:00:00] [#]} (15. f3 $16) 15... Ne6 {[%emt 0:07:34]} (15... g5 $1 $11 16. bxc5 dxc5) 16. Nxe6 {[%emt 0:00:00]} Bxe6 {[%emt 0:01:04]} 17. Rc1 {[%emt 0:00:00]} Qb6 {[%emt 0:08:17]} 18. a3 {[%emt 0:00:00]} Rac8 {[%emt 0:06:52]} 19. Qd2 {[%emt 0:00:00]} Ng4 {[%emt 0:04:47]} 20. Na4 {[%emt 0:00:00]} Qd4 {[%emt 0:01:00]} 21. Qxd4 {[%emt 0:00:00]} Bxd4 {[%emt 0:00:05]} 22. h3 {[%emt 0:00:00]} (22. Rcd1 $11 Be5 23. h3) 22... Rxc1 {[%emt 0:13:46] &Nero is more active.} 23. Rxc1 {[%emt 0:00:00]} Ne5 {[%emt 0:00:10]} 24. Rd1 {[%emt 0:00:00]} Nc6 {[%emt 0:00:06] And now ...Bb3 would win.} 25. b5 {[%emt 0:00:00]} Bb3 {[%emt 0:00:07][%csl LRa4,LRd1,LRe4]} 26. Rd2 {[%emt 0:00:00] Loses the game.} (26. Rd3 $15 axb5 27. Rxb3 Rxe4 28. Bg3 bxa4 29. Rxb7) 26... axb5 $19 {[%emt 0:03:59]} ({Less strong is} 26... Bxa4 27. bxc6 Bc3 28. Rd3 $16 (28. Rxd6 Bxc6 29. f3 Be5 $11)) 27. Bxb5 {[%emt 0:00:00][%cal Od2d4]} Rxe4 {[%emt 0:00:02]} 28. Bg3 {[%emt 0:00:00] [#]} Na7 $1 {[%emt 0:08:41]} 29. Bd7 {[%emt 0:00:00]} Nc6 {[%emt 0:00:05]} 30. Nb2 {[%emt 0:00:00]} d5 {[%emt 0:03:33][%cal Bd6d5,Bd5d4,Bd4d3][%mdl 32]} 31. Rd3 {[%emt 0:00:00]} Ba2 {[%emt 0:01:35]} (31... Bxb2 32. Rxb3 Be5 33. Bxe5 Nxe5 34. Rxb7 $11) 32. Nd1 $2 {[%emt 0:01:04]} (32. Kh2 {was forced.}) 32... Ne5 {[%emt 0:00:34]} 33. Bxe5 {[%emt 0:01:39]} Re1+ {[%emt 0:00:09]} ({Not} 33... Bxe5 $2 34. f3 Bd4+ 35. Kh2 $19) 34. Kh2 {[%emt 0:00:05]} Bxe5+ {[%emt 0:00:06]} 35. g3 {[%emt 0:00:32]} d4 {[%emt 0:01:01] Strongly threatening ...Bd5.} 36. f4 {[%emt 0:00:53]} (36. Bb5 $142 Bb1 37. Nb2) 36... Re2+ {[%emt 0:01:11]} 37. Nf2 {[%emt 0:01:10] [#]} Bc4 $1 {[%emt 0:01:12]} 38. Rd1 {[%emt 0:01:07]} Rxf2+ {[%emt 0:01:58]} 39. Kg1 {[%emt 0:00:01]} Re2 {[%emt 0:00:11]} 40. fxe5 {[%emt 0:00:03][%mdl 4096] Endgame KRB-KRB} d3 {[%emt 0:00:06]} 41. Bg4 {[%emt 0:01:17]} Rxe5 {[%emt 0:00:38]} 42. Kf2 {[%emt 0:00:27]} b5 {[%emt 0:00:42] Hoping for ...Re8.} 43. Bf3 $2 {[%emt 0:00:43]} (43. Re1 Rd5 44. Rb1) 43... Re6 {[%emt 0:00:59]} 44. Rc1 {[%emt 0:00:15]} Ra6 {[%emt 0:00:50]} 45. Rc3 {[%emt 0:00:12]} (45. Ra1 $142) 45... Rf6 {[%emt 0:00:18] Weighted Error Value: White=0.46/Black=0.19 (very precise)} 0-1

[Event "1st Semana Santa Torrevieja 2022"]
[Site "Torrevieja Alicante"]
[Date "2022.04.14"]
[Round "3.9"]
[White "Vasquez Schroeder, Rodrigo"]
[Black "Breneis, Lukas"]
[Result "1-0"]
[ECO "A50"]
[WhiteElo "2493"]
[BlackElo "2237"]
[Annotator "TA"]
[PlyCount "121"]
[EventDate "2022.04.12"]
[EventType "swiss"]
[EventCountry "ESP"]
[SourceTitle "playchess.com"]
[Source "ChessBase"]
[SourceQuality "1"]
[TimeControl "5400+30"]

{[%evp 13,121,14,1,3,11,18,17,18,17,0,5,5,0,0,9,8,10,4,12,10,20,17,20,20,43,48,48,34,40,11,8,0,3,7,16,0,0,0,0,0,0,-26,28,12,5,22,126,112,105,88,208,207,285,256,461,33,33,33,50,50,65,68,109,123,163,117,170,109,109,101,102,102,102,64,275,109,428,403,1452,1027,1816,1578,6490,5413,29976,29945,1545,1369,1312,1291,1258,1091,1166,8,29955,29958,10556,10556,2337,1788,29977,29978,29978,29979,29987,29976,29976,29976,29977,29975]} 1. Nf3 {[%emt 0:00:52]} Nf6 {[%emt 0:01:13]} 2. c4 {[%emt 0:00:21]} b6 {[%emt 0:01:05]} 3. g3 {[%emt 0:00:32]} Bb7 {[%emt 0:00:16]} 4. Bg2 {[%emt 0:00:05]} g6 {[%emt 0:01:01]} 5. O-O {[%emt 0:01:22]} Bg7 {[%emt 0:00:13]} 6. d4 {[%emt 0:00:48]} O-O {[%emt 0:00:32]} 7. Nc3 {[%emt 0:00:24] 7.Re1 is a critical line.} Ne4 {[%emt 0:02:58]} 8. Bd2 {[%emt 0:00:30] A50: Queen's Fianchetto Defence (1 d4 Nf6 2 c4 b6).} Nxd2 {[%emt 0:01:45]} 9. Qxd2 {[%emt 0:00:06]} ({Reject} 9. Nxd2 Bxg2 10. Kxg2 Bxd4 $17) 9... c5 {[%emt 0:08:24]} 10. d5 {[%emt 0:00:30] The position is equal.} d6 {[%emt 0:00:18] [#]} 11. Rad1 $146 {[%emt 0:01:32]} ({Predecessor:} 11. Ne1 Na6 12. f4 Nc7 13. Nd3 Ba6 14. b3 b5 15. Nb2 bxc4 16. Nxc4 Nb5 17. Ne4 Bxa1 18. Rxa1 {0-1 (33) Yuffa,D (2563)-Romanov,E (2614) Sochi 2018}) 11... a6 {[%emt 0:04:39][%cal Ob6b5]} 12. a4 {[%emt 0:01:39] Against b5} Nd7 {[%emt 0:00:56]} 13. Qc2 {[%emt 0:00:35]} Qc7 {[%emt 0:05:30]} 14. h3 {[%emt 0:02:08]} Rfe8 {[%emt 0:04:56]} 15. e3 {[%emt 0:02:01]} Rad8 {[%emt 0:02:50]} 16. b3 {[%emt 0:02:28]} b5 {[%emt 0:08:49]} 17. axb5 {[%emt 0:02:22]} Qa5 {[%emt 0:05:10] [#]} 18. bxa6 $1 {[%emt 0:00:24]} Bxc3 {[%emt 0:00:19]} (18... Qxc3 19. Qxc3) 19. axb7 {[%emt 0:00:08]} Rb8 {[%emt 0:01:11]} 20. Rb1 {[%emt 0:02:26]} Rxb7 {[%emt 0:04:31]} 21. Rfc1 {[%emt 0:02:26]} Bg7 {[%emt 0:00:40]} 22. Nd2 {[%emt 0:01:09]} Ra8 {[%emt 0:01:26]} 23. h4 {[%emt 0:23:49]} Qb4 {[%emt 0:05:04]} 24. f4 {[%emt 0:12:31]} Rba7 {[%emt 0:01:54]} 25. Qd3 {[%emt 0:01:27]} Ra2 {[%emt 0:05:57]} 26. Rc2 {[%emt 0:02:20]} f5 {[%emt 0:00:30]} 27. h5 {[%emt 0:01:16]} Nf6 {[%emt 0:02:58]} (27... Rxc2 $142 28. Qxc2 Qc3 29. Qxc3 Bxc3) 28. hxg6 $11 {[%emt 0:01:41]} hxg6 {[%emt 0:00:26]} 29. Bf3 {[%emt 0:00:27]} Ra1 {[%emt 0:02:22]} (29... Rxc2 $11 30. Qxc2 Ra3) 30. Rxa1 $1 $16 {[%emt 0:01:21]} Rxa1+ {[%emt 0:00:02]} 31. Kg2 $1 {[%emt 0:00:12] And now e4 would win.} Qa5 {[%emt 0:10:09]} (31... Kf8 $16) 32. e4 $18 {[%emt 0:03:47]} fxe4 {[%emt 0:00:39]} 33. Bxe4 {[%emt 0:00:29]} Re1 $2 {[%emt 0:03:21]} (33... Rd1) 34. Bf3 $2 {[%emt 0:02:28]} (34. Bxg6 $18 {Black must now prevent Nf3.} Qa1 35. Nf3) 34... Qa1 $1 $14 {[%emt 0:01:39]} 35. Nf1 {[%emt 0:04:56]} ({Not} 35. Qxg6 $2 Rh1 36. Be2 Rh6 37. Qxh6 Bxh6 $19) 35... Qb1 {[%emt 0:04:33][%cal Oe1f1] aiming for ...Rxf1!} 36. Rd2 {[%emt 0:03:53]} g5 {[%emt 0:01:43]} 37. fxg5 {[%emt 0:03:35]} Nd7 {[%emt 0:00:30]} 38. Bg4 {[%emt 0:20:30]} Nf8 {[%emt 0:03:51] Against Be6+} 39. Qf3 {[%emt 0:00:00]} ({Better is} 39. Nh2 $18) 39... Bd4 {[%emt 0:02:33] [#]} (39... Qg6 $16) 40. Bh5 {[%emt 0:00:00]} (40. b4 $1 $18 {[%cal Rb4b5]}) 40... Ng6 $16 {[%emt 0:00:02]} 41. Bxg6 {[%emt 0:00:00]} Qxg6 {[%emt 0:00:02]} 42. Re2 {[%emt 0:00:00]} Rxe2+ {[%emt 0:00:31]} 43. Qxe2 {[%emt 0:00:00] Threatens to win with Qe6+.} Be5 $2 {[%emt 0:01:16] [#]} (43... Qxg5 $14 44. Nh2 Bf6) 44. Nh2 $2 {[%emt 0:00:00]} (44. Kh3 $1 $18 {and the rest is easy.}) 44... Qb1 $2 {[%emt 0:01:33][%mdl 8192]} (44... Qxg5 $16 {is more resistant.} 45. Qg4 Qxg4 46. Nxg4 Ba1) 45. Nf3 $18 {[%emt 0:00:00]} Qxb3 {[%emt 0:00:36]} (45... Qf5 $142 46. Nxe5 dxe5) 46. Qe4 {[%emt 0:00:00]} Qb2+ {[%emt 0:01:03]} 47. Kh3 {[%emt 0:00:00]} Qa1 {[%emt 0:00:43]} 48. Kg4 {[%emt 0:00:00] White threatens Qg6+ and mate.} Qc3 {[%emt 0:01:02]} 49. Nxe5 {[%emt 0:00:00]} dxe5 {[%emt 0:00:01] KQ-KQ} 50. Qg6+ {[%emt 0:03:31]} Kf8 {[%emt 0:00:01]} 51. Qh6+ {[%emt 0:00:33]} Ke8 {[%emt 0:00:38]} 52. Qc6+ {[%emt 0:00:13]} Kf7 {[%emt 0:00:50]} 53. Qxc5 $2 {[%emt 0:01:07]} ({White must play} 53. Qe6+ $18 Kf8 54. Kh5) 53... e4 $2 {[%emt 0:00:01][%mdl 8192]} (53... Qc2 $11) 54. Qf2+ {[%emt 0:00:09]} Kg7 {[%emt 0:00:31]} 55. g6 {[%emt 0:00:54]} Kxg6 {[%emt 0:00:50]} 56. Qf5+ {[%emt 0:00:06]} Kh6 {[%emt 0:01:10]} 57. Qe6+ {[%emt 0:00:21] White mates.} Kh7 {[%emt 0:00:32]} 58. Qxe7+ {[%emt 0:00:10]} Kh8 {[%emt 0:00:07]} 59. Qxe4 {[%emt 0:00:40]} Qg7+ {[%emt 0:00:08]} 60. Kh3 {[%emt 0:00:14]} Qg6 {[%emt 0:00:23]} 61. Qh4+ {[%emt 0:00:11] Weighted Error Value: White=0.41/Black=0.68} 1-0

[Event "1st Semana Santa Torrevieja 2022"]
[Site "Torrevieja Alicante"]
[Date "2022.04.14"]
[Round "3.10"]
[White "Aguilera Lopez, Alejandro"]
[Black "Sochacki, Christophe"]
[Result "0-1"]
[ECO "A28"]
[WhiteElo "2211"]
[BlackElo "2485"]
[Annotator "TA"]
[PlyCount "118"]
[EventDate "2022.04.12"]
[EventType "swiss"]
[EventCountry "ESP"]
[SourceTitle "playchess.com"]
[Source "ChessBase"]
[SourceQuality "1"]
[TimeControl "5400+30"]

{[%evp 9,118,31,22,37,47,35,48,35,36,32,51,39,55,45,85,77,82,75,165,174,171,151,134,112,122,84,106,102,106,102,118,105,166,161,185,38,38,38,23,23,38,38,56,4,4,8,12,0,4,0,0,0,0,0,0,0,0,0,0,0,0,0,0,0,13,-17,-12,-128,-114,-213,-211,-237,-186,-255,-254,-227,-170,-131,-126,-322,-287,-291,-294,-261,-346,-327,-336,-312,-302,-868,-876,-961,-941,-860,-860,-910,-860,-798,-753,-29965,-29969,-29964,-29965,-29969,-29970,-29970,-29972,-29981,-29982,-29975,-29960]} 1. e3 {[%emt 0:05:02]} Nf6 {[%emt 0:01:23]} 2. c4 {[%emt 0:00:35]} e5 {[%emt 0:00:19]} 3. Nc3 {[%emt 0:00:07]} Nc6 {[%emt 0:02:02]} 4. Nf3 {[%emt 0:01:21]} a6 {[%emt 0:01:39]} 5. d4 {[%emt 0:01:42]} exd4 {[%emt 0:00:13]} 6. exd4 {[%emt 0:01:16] A28: English Opening: Four Knights Variation.} d6 {[%emt 0:15:08] [#]} 7. d5 $146 {[%emt 0:02:08]} ({Predecessor:} 7. Qe2+ Qe7 8. Qxe7+ Bxe7 9. Bg5 h6 10. Bh4 Bg4 11. O-O-O O-O 12. h3 Bxf3 13. gxf3 {1-0 (45) Bastiao,T-Couto,C Coimbra 2015}) 7... Ne5 {[%emt 0:00:15]} 8. Nxe5 {[%emt 0:00:33] White is slightly better.} dxe5 {[%emt 0:00:05]} 9. Bd3 {[%emt 0:00:45]} Bd6 {[%emt 0:15:17]} 10. Bg5 {[%emt 0:02:47][%cal Bc1g5,Bg5h4,Bh4g3][%mdl 32]} h6 {[%emt 0:00:16]} 11. Bh4 {[%emt 0:01:51]} Qe7 {[%emt 0:03:13]} 12. O-O $1 {[%emt 0:01:23]} g5 {[%emt 0:04:39]} 13. Bg3 {[%emt 0:01:03]} h5 {[%emt 0:00:26]} (13... O-O $16) 14. c5 $1 $18 {[%emt 0:08:22]} h4 {[%emt 0:04:01]} 15. cxd6 {[%emt 0:00:25]} cxd6 {[%emt 0:00:11] [#]} 16. Bxe5 {[%emt 0:00:11][%mdl 512]} dxe5 {[%emt 0:00:02]} 17. Re1 {[%emt 0:07:06]} Kf8 {[%emt 0:07:21]} 18. Qe2 {[%emt 0:01:59]} h3 {[%emt 0:09:14]} 19. Qxe5 {[%emt 0:04:50]} Qxe5 {[%emt 0:00:05]} 20. Rxe5 {[%emt 0:00:05]} Ng4 {[%emt 0:03:49]} (20... g4 $16 {is a better defense.}) 21. Rxg5 {[%emt 0:04:05]} f6 {[%emt 0:02:34] [#]} 22. Rxg4 {[%emt 0:02:32]} Bxg4 $14 {[%emt 0:00:04]} 23. f3 {[%emt 0:00:06]} Bd7 {[%emt 0:00:12]} 24. g3 {[%emt 0:00:35]} f5 {[%emt 0:04:23]} 25. Kf2 {[%emt 0:01:39]} Re8 {[%emt 0:04:35]} 26. Ne2 {[%emt 0:01:01]} ({White should play} 26. Nd1 $14) 26... Ke7 $11 {[%emt 0:03:20]} 27. Nf4 {[%emt 0:04:11]} Kd6 {[%emt 0:00:09]} 28. Rd1 {[%emt 0:00:31]} Rh6 {[%emt 0:01:36]} 29. Bf1 {[%emt 0:02:53]} Rc8 {[%emt 0:06:35]} 30. Rd2 {[%emt 0:01:56] Against Rc2} ({Much worse is} 30. Bxh3 Rc2+ 31. Ke3 Rxb2 $17) 30... Rc1 {[%emt 0:00:06]} 31. Ne2 {[%emt 0:01:22]} Ra1 {[%emt 0:00:40]} 32. Nc3 {[%emt 0:00:54] Prevents Bb5.} Kc5 {[%emt 0:02:17]} 33. a3 {[%emt 0:02:05]} b5 {[%emt 0:01:12]} 34. Nd1 {[%emt 0:00:56]} b4 {[%emt 0:00:26]} 35. axb4+ {[%emt 0:00:58]} Kxb4 {[%emt 0:00:05]} 36. Ne3 {[%emt 0:00:11] Nc2+ is the strong threat.} Rb1 {[%emt 0:02:06]} 37. Bd3 {[%emt 0:07:13]} Rh1 {[%emt 0:00:08]} 38. Nf1 {[%emt 0:00:14]} (38. Nc2+ $11 {was the only way to keep the balance.} Kc5 39. b4+ Kxd5 40. Bxf5+ Ke5 41. Rxd7 Kxf5 42. Ne3+ Ke6 43. Rb7) 38... Rd6 {[%emt 0:01:30]} 39. Be2 {[%emt 0:00:33]} (39. Ke3 $17 Rxd5 40. Bxa6 Rxd2 41. Kxd2) 39... Bb5 $19 {[%emt 0:02:28]} 40. Bxb5 {[%emt 0:03:13]} axb5 {[%emt 0:00:14][%mdl 4096] Endgame KRR-KRN} 41. Rd1 {[%emt 0:00:45]} (41. Rd4+ {might work better.} Kc5 42. Rh4) 41... Kc5 {[%emt 0:01:17]} 42. Rc1+ {[%emt 0:00:17]} Kd4 {[%emt 0:00:54][%mdl 1024] Black has strong compensation.} 43. Rd1+ {[%emt 0:00:37] [#]} Ke5 $1 {[%emt 0:00:31]} 44. Re1+ $2 {[%emt 0:00:53] [#]} (44. f4+ $17 {is the only way for White.} Kf6 45. Ke3) 44... Kf6 $1 {[%emt 0:00:07]} 45. Rd1 {[%emt 0:00:07]} Rd8 {[%emt 0:02:11]} 46. g4 {[%emt 0:02:25]} fxg4 {[%emt 0:00:26]} 47. fxg4 {[%emt 0:00:02]} Ke5 {[%emt 0:00:57]} 48. Re1+ {[%emt 0:01:55]} Kd6 {[%emt 0:00:41] Threatens to win with ...Rf8+.} 49. Ne3 $2 {[%emt 0:05:42]} (49. Rc1) 49... Rxe1 {[%emt 0:00:24]} 50. Kxe1 {[%emt 0:00:03] KR-KN} Ke5 {[%emt 0:00:03]} 51. Kf2 {[%emt 0:00:59]} Kf4 {[%emt 0:02:06]} 52. g5 {[%emt 0:00:43]} Kxg5 {[%emt 0:00:40] Strongly threatening ...Kf4.} 53. Kg3 {[%emt 0:00:12]} Re8 {[%emt 0:00:25]} 54. Nc2 {[%emt 0:00:49]} Re2 {[%emt 0:00:56] Black mates.} 55. Nd4 {[%emt 0:00:59]} Rxb2 {[%emt 0:00:27]} 56. d6 {[%emt 0:00:26]} Kf6 {[%emt 0:00:02]} 57. Kxh3 {[%emt 0:00:33]} b4 {[%emt 0:00:09][%cal Bb5b4,Bb4b3][%mdl 32]} 58. Kg3 {[%emt 0:01:09]} Rd2 {[%emt 0:00:13]} 59. Nb5 {[%emt 0:01:01]} b3 {[%emt 0:00:30] What a bad dream for White.  Weighted Error Value: White=0.37/Black=0.08 (flawless)} 0-1

[Event "1st Semana Santa Torrevieja 2022"]
[Site "Torrevieja Alicante"]
[Date "2022.04.14"]
[Round "3.11"]
[White "Cabrera, Alexis"]
[Black "Perea Fruet, Lorenzo"]
[Result "1-0"]
[ECO "B45"]
[WhiteElo "2482"]
[BlackElo "2185"]
[Annotator "TA"]
[PlyCount "73"]
[EventDate "2022.04.12"]
[EventType "swiss"]
[EventCountry "ESP"]
[SourceTitle "playchess.com"]
[Source "ChessBase"]
[SourceQuality "1"]
[TimeControl "5400+30"]

{[%evp 12,73,45,35,26,29,35,47,29,24,30,7,50,28,25,26,68,60,63,54,62,53,52,43,63,74,111,98,114,83,91,90,224,230,206,170,202,140,325,327,320,321,306,296,283,212,218,214,461,450,540,484,872,912,831,862,799,689,650,608,2600,2432,29994,29995]} 1. e4 {[%emt 0:09:59]} c5 {[%emt 0:00:12]} 2. Nf3 {[%emt 0:00:09]} e6 {[%emt 0:00:10]} 3. d4 {[%emt 0:00:12]} cxd4 {[%emt 0:00:05]} 4. Nxd4 {[%emt 0:00:03]} Nf6 {[%emt 0:00:21]} 5. Nc3 {[%emt 0:00:05]} Nc6 {[%emt 0:00:03]} 6. Ndb5 {[%emt 0:00:03]} Bc5 {[%emt 0:00:06]} 7. Bf4 {[%emt 0:00:03]} O-O {[%emt 0:00:05] B45: Sicilian Four Knights.} 8. Bc7 {[%emt 0:00:03]} Qe7 {[%emt 0:00:15] Hoping for ...d5.} 9. Bd6 $1 {[%emt 0:00:06]} Bxd6 {[%emt 0:00:38] White is slightly better.} 10. Qxd6 {[%emt 0:00:05]} Qd8 {[%emt 0:00:05]} 11. Be2 {[%emt 0:20:45]} Ne8 {[%emt 0:02:16] Inhibits Nc7.} (11... a6 $5 {[%cal Ra6b5]} 12. Nd4 Nxd4 13. Qxd4 d5 $14) 12. Qd2 {[%emt 0:12:01]} a6 {[%emt 0:11:07] [#]} 13. Nd4 $146 {[%emt 0:04:22]} ({Predecessor:} 13. Nd6 Nxd6 14. Qxd6 b5 15. a3 Bb7 16. Rd1 Rc8 17. O-O Qc7 18. Qxd7 Qb6 19. Qd6 {1-0 (78) Khanin,S (2521)-Yoo,C (2485) Chess.com INT 2021}) 13... d5 {[%emt 0:04:31]} 14. exd5 {[%emt 0:03:30]} exd5 {[%emt 0:00:18]} 15. O-O-O {[%emt 0:09:04]} Nf6 {[%emt 0:04:27]} 16. Rhe1 {[%emt 0:06:30]} Re8 {[%emt 0:17:12]} 17. Bf3 {[%emt 0:03:34][%cal Oc3d5]} Be6 {[%emt 0:00:51]} 18. Qf4 {[%emt 0:02:14] Inhibits Qd6.} Nxd4 {[%emt 0:03:10]} 19. Rxd4 {[%emt 0:02:00]} ({Resist} 19. Qxd4 Qc7 $14) 19... Rc8 {[%emt 0:01:34]} 20. Red1 {[%emt 0:05:20] &Bianco is much more active.} Rc5 {[%emt 0:05:50]} 21. g4 {[%emt 0:02:45]} Rxc3 {[%emt 0:08:50]} 22. bxc3 $18 {[%emt 0:00:05] g5 is the strong threat.} Qa5 {[%emt 0:00:05]} 23. Kb2 {[%emt 0:02:40]} Rc8 {[%emt 0:00:59]} 24. R1d3 {[%emt 0:00:59]} Ne4 $2 {[%emt 0:00:41] This move loses the game for Black.} (24... h6 $16 25. Qd6 Rd8) 25. Bxe4 {[%emt 0:01:15]} (25. Rb4 Nc5 26. Re3 d4 27. Rxd4 Qxa2+ 28. Kc1 h6 $16) 25... dxe4 {[%emt 0:00:18]} 26. Qxe4 {[%emt 0:00:20]} Qxa2+ {[%emt 0:00:30]} 27. Kc1 {[%emt 0:01:56]} Qa5 {[%emt 0:00:32] [#] Prevents Rd8+.} 28. Qe5 $3 {[%emt 0:04:04][%mdl 512]} b5 {[%emt 0:01:59]} 29. f4 {[%emt 0:02:30][%cal Bf2f4,Bf4f5][%mdl 32]} Re8 $2 {[%emt 0:20:25]} (29... Qa1+ $2 30. Kd2 Qa5 31. f5 $18) (29... Bc4) 30. Re3 {[%emt 0:04:12] aiming for f5.} Rf8 {[%emt 0:10:13]} 31. f5 {[%emt 0:00:13]} Qa1+ {[%emt 0:00:32]} (31... Bc4 $142 32. f6 Qa1+ 33. Kd2 Qf1 34. fxg7 Rc8) 32. Kd2 {[%emt 0:00:04]} Bc4 {[%emt 0:00:05]} 33. Qe7 {[%emt 0:00:24][%cal Oe7f8] Intending Qxf8+! and mate.} Qa5 {[%emt 0:03:28]} 34. Re5 {[%emt 0:01:35]} Qb6 {[%emt 0:02:24]} 35. Rd6 {[%emt 0:00:04] Inhibits Qf6.} Qf2+ {[%emt 0:01:04]} 36. Kc1 {[%emt 0:00:05][%cal Oe7f8] White threatens Qxf8+! and mate.} f6 {[%emt 0:00:36] [#]} 37. Rd8 $1 {[%emt 0:00:53] Weighted Error Value: White=0.12 (very precise) /Black=0.70} 1-0